bitfinex/quotes_ETHUSD_20241212
["timestamp","ask_amount","ask_price","bid_price","bid_amount"]
[1734041862033,0.55,3842.0,3841.6,0.9508145]
[1734041862733,0.50991751,3842.8,3841.6,0.9508145]
[1734041862734,0.55,3842.2,3841.6,0.9508145]
[1734041863284,3.50991751,3842.8,3841.6,0.9508145]
[1734041863285,0.55,3842.4,3841.6,0.9508145]
[1734041864040,0.55,3842.7,3841.8,2.6029]
[1734041864239,0.55,3842.7,3841.9,0.35537145]
[1734041864533,0.55,3842.7,3842.0,2.60279]
[1734041864763,0.55,3842.9,3842.0,2.60279]
[1734041864967,0.55,3842.9,3841.6,0.9508145]
[1734041864968,0.55,3842.9,3841.8,2.60293]
[1734041865169,0.55,3843.2,3841.8,2.60293]
[1734041865350,0.55,3843.0,3841.8,2.60293]
[1734041865536,2.60219,3843.0,3841.8,2.60293]
[1734041865737,0.55,3842.8,3841.6,0.9508145]
[1734041865983,0.55,3842.9,3841.6,0.9508145]
[1734041866195,0.55,3842.5,3841.6,0.9508145]
[1734041866493,3.15251,3842.5,3841.6,0.9508145]
[1734041866901,0.55,3842.6,3841.6,0.9508145]
[1734041867192,0.55,3842.8,3841.6,0.1622145]
[1734041867392,0.55,3842.3,3841.6,0.1622145]
[1734041870153,5.60211,3843.1,3841.6,0.1622145]
[1734041870154,0.55,3842.5,3841.6,0.1622145]
[1734041870500,3.15242,3842.6,3841.6,0.1622145]
[1734041870861,0.55,3842.6,3841.7,0.7536]
[1734041871385,2.60213,3843.0,3841.9,2.60286]
[1734041872609,0.52513951,3843.2,3841.7,1.10548345]
[1734041872610,0.55,3842.9,3841.7,1.10548345]
[1734041872769,3.0,3843.5,3841.7,1.10548345]
[1734041872770,0.55,3843.1,3842.1,2.60268]
[1734041873127,0.55,3843.0,3842.1,2.60268]
[1734041873408,0.55,3843.2,3842.2,0.7992]
[1734041873553,3.152,3843.2,3842.2,0.7992]
[1734041874294,3.152,3843.2,3842.2,1.139388]
[1734041874493,0.55,3843.2,3842.2,0.7992]
[1734041874658,2.60217,3843.0,3842.2,0.7992]
[1734041874858,3.15221,3842.9,3842.2,0.7992]
[1734041875378,2.60221,3842.9,3842.2,0.7992]
[1734041875897,0.55,3842.8,3842.2,0.7992]
[1734041876706,3.15228,3842.8,3842.2,0.7992]
[1734041877478,0.55,3843.0,3842.2,0.7992]
[1734041879078,2.60213,3843.0,3842.2,0.7992]
[1734041879276,0.55,3842.9,3842.2,0.7992]
[1734041879479,0.55,3843.2,3842.2,0.7992]
[1734041879844,0.55,3842.8,3842.2,0.7992]
[1734041880177,3.15227,3842.8,3842.2,0.7992]
[1734041883479,2.60233,3842.7,3841.6,0.1622145]
[1734041883810,6.87881596,3842.6,3841.6,0.1622145]
[1734041884144,6.15301,3841.7,3841.6,0.1622145]
[1734041884295,6.15301,3841.7,3841.6,4.5e-06]
[1734041884476,6.15301,3841.7,3840.0,0.917811]
[1734041884477,0.55,3840.6,3840.0,0.917811]
[1734041885096,3.15367,3840.8,3840.0,0.917811]
[1734041885298,0.55,3840.8,3840.0,0.917811]
[1734041885749,2.60369,3840.7,3840.0,0.917811]
[1734041885908,0.55,3840.8,3840.0,0.917811]
[1734041886429,2.60409,3840.2,3840.0,0.917811]
[1734041886750,0.55,3840.1,3840.0,0.917811]
[1734041887050,3.15398,3840.3,3840.0,0.917811]
[1734041887258,2.60432,3839.8,3839.2,0.08029768]
[1734041887554,0.55,3839.3,3839.2,0.08029768]
[1734041888038,3.15464,3839.3,3839.2,0.08029768]
[1734041889219,0.55,3839.3,3839.2,0.08029768]
[1734041889549,3.15464,3839.3,3839.2,0.08029768]
[1734041889905,3.15464,3839.3,3839.2,7.68e-06]
[1734041892008,0.55,3839.3,3839.2,7.68e-06]
[1734041892280,0.55,3839.4,3839.2,7.68e-06]
[1734041892513,0.51027521,3839.8,3839.2,7.68e-06]
[1734041893625,0.55,3839.7,3839.2,7.68e-06]
[1734041893904,3.12933343,3840.5,3839.3,0.8273]
[1734041894121,3.12933343,3840.5,3839.3,1.17050477]
[1734041894122,0.52546343,3840.5,3839.3,1.17050477]
[1734041894259,3.12929343,3840.5,3839.3,1.17050477]
[1734041894458,2.60391,3840.4,3839.3,0.8273]
[1734041895162,2.60389,3840.4,3839.3,0.8273]
[1734041895393,0.55,3839.6,3839.3,0.8273]
[1734041896157,3.15444,3839.6,3839.2,7.68e-06]
[1734041897282,3.52546343,3840.5,3839.2,7.68e-06]
[1734041897283,2.60451,3839.5,3839.2,7.68e-06]
[1734041897509,0.55,3839.4,3839.2,7.68e-06]
[1734041899274,0.55,3839.5,3839.2,7.68e-06]
[1734041900467,0.55,3839.3,3839.2,7.68e-06]
[1734041900663,3.15464,3839.3,3839.2,7.68e-06]
[1734041901983,0.55,3839.5,3839.2,7.68e-06]
[1734041902182,3.15454,3839.5,3839.2,7.68e-06]
[1734041902412,2.60464,3839.3,3839.2,7.68e-06]
[1734041902707,3.15464,3839.3,3839.2,7.68e-06]
[1734041904510,3.15464,3839.3,3838.8,0.0023847]
[1734041904511,0.55,3839.2,3838.8,0.0023847]
[1734041904715,3.15473,3839.2,3838.8,0.0023847]
[1734041904949,0.55,3839.2,3838.8,0.0023847]
[1734041905117,0.51719333,3839.9,3838.9,0.7811]
[1734041905319,2.6041,3840.1,3839.0,3.3859]
[1734041905530,2.60438,3839.7,3839.0,0.7811]
[1734041906118,0.51662361,3840.3,3839.0,0.7811]
[1734041906310,2.60424,3839.9,3839.0,0.7811]
[1734041907501,0.51662361,3840.3,3838.8,0.0023847]
[1734041907696,2.60491,3838.9,3838.8,0.0023847]
[1734041908116,3.15491,3838.9,3838.8,0.0023847]
[1734041908427,6.15491,3838.9,3838.8,0.0023847]
[1734041910384,2.60525,3838.4,3838.3,0.6334847]
[1734041910587,2.60525,3838.4,3837.7,0.1622145]
[1734041910588,0.55,3838.3,3837.7,0.1622145]
[1734041910788,3.15565,3837.8,3837.7,0.1622145]
[1734041911497,0.55,3837.8,3837.7,0.1622145]
[1734041911699,6.13638201,3838.9,3837.7,0.1622145]
[1734041911700,0.55,3838.0,3837.7,0.1622145]
[1734041912335,2.75365,3839.2,3837.7,0.1622145]
[1734041912336,2.60513,3838.6,3837.7,0.43901895]
[1734041912540,2.60498,3838.9,3837.7,0.43901895]
[1734041912742,2.60498,3838.9,3837.7,0.1622145]
[1734041913046,2.60501,3838.8,3837.7,0.1622145]
[1734041913193,2.60501,3838.8,3837.7,2.7679245]
[1734041913399,3.1263209,3839.3,3837.8,0.781]
[1734041913627,0.5216309,3839.3,3837.9,2.60558]
[1734041913846,2.6055,3838.1,3837.7,0.1622145]
[1734041914295,0.55,3838.0,3837.7,0.1622145]
[1734041914493,0.55,3838.2,3837.8,0.8253]
[1734041914693,2.60471,3839.2,3838.0,2.60548]
[1734041915006,0.55,3839.4,3838.1,0.8253]
[1734041915203,0.55,3838.7,3838.1,0.8253]
[1734041915929,2.60455,3839.5,3838.1,0.8253]
[1734041915930,0.55,3838.9,3838.1,0.8253]
[1734041916131,0.55,3839.0,3838.1,0.8253]
[1734041916734,0.55,3839.1,3838.1,0.8253]
[1734041917092,0.55,3839.1,3837.8,0.7758]
[1734041917295,2.60458,3839.4,3838.3,0.7758]
[1734041917296,0.55,3839.3,3838.3,0.7758]
[1734041917637,2.60465,3839.3,3838.3,0.7758]
[1734041917832,2.60485,3839.0,3837.7,0.1622145]
[1734041917990,0.55,3838.6,3837.8,0.8072]
[1734041918190,0.55,3838.9,3837.8,0.8072]
[1734041918417,0.1489,3839.1,3837.8,0.8072]
[1734041918418,0.55,3838.6,3837.8,0.8072]
[1734041919242,0.55,3838.8,3837.8,0.8072]
[1734041920067,0.55,3838.1,3837.7,0.1622145]
[1734041920712,0.55,3838.4,3837.7,0.1622145]
[1734041921152,0.55,3838.1,3837.7,0.1622145]
[1734041921912,0.55,3838.2,3837.7,0.1622145]
[1734041922327,2.60539,3838.2,3837.7,0.1622145]
[1734041922620,0.55,3838.3,3837.7,0.1622145]
[1734041922621,2.60547,3838.1,3837.7,0.1622145]
[1734041922825,0.55,3838.6,3837.7,0.1622145]
[1734041923048,0.55,3837.8,3837.7,0.1622145]
[1734041923612,0.55,3838.0,3837.7,0.1622145]
[1734041924166,3.15565,3837.8,3837.7,0.1622145]
[1734041924474,0.1489,3838.8,3837.7,0.9610145]
[1734041924627,2.60498,3838.8,3837.7,0.9610145]
[1734041924814,2.60477,3839.1,3837.7,0.9610145]
[1734041925413,2.60507,3838.7,3837.7,0.9610145]
[1734041925812,2.60526,3838.4,3837.7,0.9610145]
[1734041926018,2.60542,3838.2,3837.7,0.9610145]
[1734041926292,0.55,3837.8,3837.7,0.9610145]
[1734041927163,0.55,3838.1,3837.7,0.1622145]
[1734041927362,3.15565,3837.8,3837.7,0.1622145]
[1734041928057,2.60552,3838.0,3837.7,0.1622145]
[1734041928261,0.55,3838.1,3837.7,0.1622145]
[1734041929195,3.30455,3837.8,3837.7,0.1622145]
[1734041929349,3.30455,3837.8,3835.8,0.8282]
[1734041929350,0.9088,3837.2,3835.8,0.6182045]
[1734041929543,0.55,3836.7,3835.8,0.6182045]
[1734041929771,0.55,3836.7,3835.2,0.02606668]
[1734041930026,0.55,3836.7,3836.0,2.60682]
[1734041930143,0.55,3836.9,3835.3,0.37178357]
[1734041930348,0.55,3837.4,3835.4,0.02606664]
[1734041930587,0.55,3836.9,3836.2,2.60672]
[1734041930948,0.55,3837.1,3836.1,2.6068]
[1734041931181,0.55,3837.1,3835.3,0.02606427]
[1734041931383,0.55,3837.1,3835.7,2.60704]
[1734041931384,0.55,3836.9,3835.7,2.60704]
[1734041931596,3.15628,3836.9,3835.7,2.867744]
[1734041932287,0.54686424,3836.9,3835.8,0.771]
[1734041932449,0.54686424,3836.9,3835.9,2.60695]
[1734041932785,2.60617,3837.1,3835.8,0.771]
[1734041932786,1.08599799,3837.3,3836.1,2.60679]
[1734041933010,3.50525848,3837.2,3835.8,0.771]
[1734041933152,4.05073799,3837.4,3836.0,2.60686]
[1734041933344,2.96474,3837.4,3836.0,2.60686]
[1734041933604,0.89892095,3837.3,3836.0,2.60686]
[1734041933812,2.60607,3837.2,3836.1,2.60681]
[1734041933974,1.44479799,3837.4,3836.0,0.3638564]
[1734041934174,2.60607,3837.2,3836.1,2.6068]
[1734041934375,0.55,3836.9,3835.8,2.607]
[1734041934605,0.55,3836.9,3835.4,0.766]
[1734041934774,0.55,3836.9,3835.9,2.60694]
[1734041934977,0.55,3836.9,3835.4,0.766]
[1734041935289,3.15661,3836.4,3835.4,0.766]
[1734041935475,0.55,3836.4,3835.4,0.766]
[1734041936195,0.55,3836.4,3835.6,2.6071]
[1734041936508,0.55,3836.4,3834.6,0.51609507]
[1734041936509,0.3588,3836.5,3834.8,0.8274]
[1734041936676,3.1146615,3836.9,3835.7,0.8274]
[1734041936677,0.55,3836.8,3835.7,0.8274]
[1734041936878,2.60609,3837.2,3836.0,2.60686]
[1734041937215,0.51604296,3837.6,3837.0,2.6062]
[1734041937414,1.98779699,3838.2,3836.6,0.7617]
[1734041937415,0.3588,3838.2,3836.6,0.7617]
[1734041937703,0.51812714,3837.7,3836.8,2.60628]
[1734041937903,0.3588,3838.2,3837.4,0.7617]
[1734041938286,0.3588,3838.2,3835.9,2.60692]
[1734041938287,0.3588,3838.0,3835.5,1.08429901]
[1734041938582,0.3588,3838.0,3835.2,2.95799803]
[1734041938583,0.3588,3837.0,3835.4,0.7894]
[1734041938778,2.60621,3837.0,3835.6,0.7894]
[1734041939107,2.60621,3837.0,3835.8,2.607]
[1734041939305,2.60637,3836.8,3835.6,3.39654]
[1734041939463,0.3588,3836.8,3834.9,0.95764951]
[1734041939663,2.60585,3837.6,3834.9,0.95764951]
[1734041939664,0.55,3836.1,3835.1,2.60747]
[1734041940073,0.55,3836.1,3834.9,0.95764951]
[1734041940289,0.55,3836.1,3835.1,2.60746]
[1734041940485,0.55,3836.1,3835.2,2.60742]
[1734041940689,0.55,3836.3,3835.2,2.60742]
[1734041940936,0.55,3836.3,3834.5,0.00243811]
[1734041940937,2.60701,3835.8,3834.6,0.798]
[1734041941085,0.9088,3835.9,3834.6,3.40582]
[1734041941408,0.9088,3835.9,3834.6,0.798]
[1734041942172,0.9088,3835.9,3834.8,2.60768]
[1734041942558,0.9088,3835.9,3834.7,2.60775]
[1734041942559,0.55,3835.9,3834.7,2.60775]
[1734041942811,0.55,3836.2,3834.8,0.8098]
[1734041943122,0.55,3836.5,3835.6,3.38074]
[1734041943479,0.3588,3836.6,3835.9,2.60693]
[1734041943824,0.3588,3836.6,3834.9,2.6076]
[1734041943825,2.96528,3836.6,3834.9,2.6076]
[1734041944110,2.96528,3836.6,3835.5,2.60721]
[1734041944776,0.55,3836.5,3835.5,2.60721]
[1734041945209,0.55,3836.5,3834.7,0.7736]
[1734041945518,0.55,3836.5,3835.5,2.60717]
[1734041945820,0.55,3836.5,3835.6,0.82256997]
[1734041945987,0.55,3836.5,3835.8,2.60695]
[1734041946389,0.55,3836.5,3835.9,2.60694]
[1734041947002,0.3588,3837.0,3835.6,0.7965]
[1734041947198,0.51784438,3837.2,3835.6,0.7965]
[1734041947420,0.51784438,3837.2,3835.8,2.60701]
[1734041947709,0.51784438,3837.2,3836.3,2.60667]
[1734041947871,0.3588,3836.7,3835.1,2.60749]
[1734041948069,0.3588,3836.7,3835.7,2.60708]
[1734041948613,0.55,3836.6,3835.2,0.7518]
[1734041948814,3.15648,3836.6,3835.4,2.60722]
[1734041949310,0.55,3836.4,3835.2,3.3592]
[1734041949685,2.60669,3836.3,3835.2,0.7518]
[1734041949882,0.3588,3836.7,3834.5,0.79743811]
[1734041949883,0.3588,3836.1,3834.5,0.79743811]
[1734041950082,0.3588,3836.1,3834.8,2.60763]
[1734041950083,0.55,3836.0,3834.8,2.60763]
[1734041950285,0.55,3836.0,3834.9,2.63368147]
[1734041950515,0.55,3836.0,3835.0,0.02607137]
[1734041950899,0.55,3836.0,3835.1,2.60747]
[1734041951100,0.55,3836.0,3834.9,2.60762]
[1734041951287,3.15689,3836.0,3835.0,0.02607255]
[1734041951620,3.15689,3836.0,3835.0,2.63362255]
[1734041951925,3.15689,3836.0,3834.6,0.7783]
[1734041951926,0.55,3836.0,3834.6,0.7783]
[1734041952141,0.55,3836.0,3835.3,3.4031]
[1734041952273,0.55,3836.0,3835.3,0.7958]
[1734041952475,0.55,3836.0,3835.1,2.60743]
[1734041952916,0.55,3836.0,3834.7,2.60772]
[1734041952917,0.55,3836.0,3835.2,2.60741]
[1734041953227,0.55,3836.0,3835.0,2.60752]
[1734041953928,0.55,3836.0,3834.8,0.02607135]
[1734041954076,0.55,3836.0,3835.2,2.60736]
[1734041956593,0.55,3836.0,3834.6,0.7958]
[1734041956778,0.55,3836.0,3835.3,2.60734]
[1734041957091,0.55,3836.0,3834.5,2.61026811]
[1734041957092,3.15694,3836.0,3834.5,2.61026811]
[1734041957292,0.55,3836.0,3835.2,2.60736]
[1734041957498,0.55,3836.0,3835.1,2.60742]
[1734041957825,0.55,3836.0,3835.1,0.7999]
[1734041958010,0.55,3836.0,3835.2,2.60741]
[1734041958322,0.55,3836.0,3835.2,0.02607157]
[1734041958626,0.55,3836.0,3835.1,3.40735]
[1734041959113,0.55,3836.0,3835.2,2.60742]
[1734041959286,0.55,3836.0,3835.3,2.60729]
[1734041959483,0.55,3836.0,3835.6,2.60713]
[1734041959682,0.3588,3836.5,3835.7,0.0260684]
[1734041959983,0.3588,3836.5,3835.9,2.60689]
[1734041960184,0.3588,3836.5,3834.4,0.7999]
[1734041960385,0.3588,3836.5,3834.3,1.08429901]
[1734041960386,0.3588,3836.5,3835.6,0.7999]
[1734041961024,0.3588,3836.5,3834.7,3.0]
[1734041961025,3.15663,3836.4,3834.8,3.43069]
[1734041961201,3.15688,3836.0,3835.0,2.60755]
[1734041961389,2.60676,3836.2,3835.2,2.60741]
[1734041961590,0.55,3836.1,3835.2,2.60741]
[1734041961817,0.55,3836.1,3834.9,2.60757]
[1734041962086,0.55,3836.1,3835.1,2.60743]
[1734041962291,2.60677,3836.2,3835.1,2.60743]
[1734041962628,0.55,3836.2,3835.2,2.60741]
[1734041963329,0.9088,3835.8,3834.7,2.6077]
[1734041963629,0.55,3835.7,3835.0,2.60754]
[1734041963783,2.60677,3836.2,3835.2,2.6074]
[1734041963784,0.55,3836.0,3835.2,2.6074]
[1734041964600,4.08599799,3837.0,3835.1,0.7677]
[1734041964601,0.3588,3836.5,3835.1,0.7677]
[1734041964801,0.3588,3836.5,3835.8,2.607]
[1734041965189,0.3588,3837.0,3835.4,0.7677]
[1734041965405,0.3588,3837.0,3835.5,0.34011175]
[1734041965608,0.3588,3837.0,3836.1,2.60677]
[1734041966529,0.53293512,3837.1,3835.0,2.60756]
[1734041966530,2.6067,3836.3,3835.0,2.60756]
[1734041966829,3.15634,3836.8,3834.8,4.44974901]
[1734041966830,0.3588,3836.1,3834.9,2.60762]
[1734041967031,0.55,3836.0,3835.2,2.60741]
[1734041967187,0.55,3836.0,3834.9,0.597307]
[1734041967390,0.55,3836.0,3835.3,2.60735]
[1734041967589,0.55,3836.0,3834.8,0.7578]
[1734041967828,0.55,3836.0,3835.2,2.60742]
[1734041968032,0.55,3836.0,3834.8,0.7578]
[1734041968292,0.55,3836.0,3835.2,2.60742]
[1734041969289,0.55,3836.0,3835.4,2.60723]
[1734041969988,0.55,3836.0,3835.3,2.60735]
[1734041970535,0.3588,3835.9,3834.6,0.8052]
[1734041970766,0.55,3835.8,3835.1,2.60748]
[1734041970949,0.55,3835.8,3835.2,2.60739]
[1734041971165,0.55,3835.8,3835.2,2.868129]
[1734041971561,0.55,3835.8,3835.2,0.260739]
[1734041971735,0.55,3835.8,3835.3,2.60735]
[1734041972383,0.55,3835.8,3835.1,2.60744]
[1734041972685,0.55,3835.8,3834.6,0.8052]
[1734041972882,0.55,3835.8,3835.3,2.60735]
[1734041973439,0.55,3835.8,3835.3,3.41135]
[1734041973785,0.55,3836.1,3835.3,3.41135]
[1734041974286,3.15687,3836.1,3835.3,0.804]
[1734041974508,0.55,3835.9,3835.3,0.804]
[1734041974846,0.55,3836.1,3835.3,3.41135]
[1734041975598,0.55,3836.1,3835.3,0.804]
[1734041975746,0.55,3836.1,3835.4,2.60728]
[1734041975947,0.3588,3836.5,3835.8,2.607]
[1734041976244,0.3588,3836.5,3835.4,0.341128]
[1734041976494,0.3588,3836.5,3835.7,2.60707]
[1734041976792,0.3588,3836.5,3835.8,2.60695]
[1734041976945,1.08599799,3836.9,3835.9,0.260695]
[1734041977287,1.08599799,3836.9,3835.4,0.341128]
[1734041977288,2.43914557,3837.0,3835.7,3.40088]
[1734041977446,1.08599799,3837.2,3835.8,3.69130901]
[1734041977644,1.08599799,3837.2,3835.9,2.60695]
[1734041977842,0.90193792,3837.1,3836.2,2.60673]
[1734041978036,1.35290688,3837.2,3836.2,2.60673]
[1734041978244,1.44479799,3837.3,3836.4,2.60658]
[1734041978439,0.90192174,3837.2,3836.4,2.60655]
[1734041978646,1.44479799,3837.3,3836.0,2.60688]
[1734041978647,0.3588,3837.3,3836.0,2.60688]
[1734041978996,0.3588,3837.3,3836.0,0.7938]
[1734041979214,0.3588,3837.3,3836.7,2.6064]
[1734041979421,0.3588,3837.3,3836.2,2.60668]
[1734041979723,0.3588,3837.3,3836.3,2.60667]
[1734041980024,0.3588,3837.3,3836.0,0.7938]
[1734041980025,0.55,3837.2,3836.4,2.60658]
[1734041980168,0.55,3837.2,3836.0,0.7938]
[1734041980372,0.55,3837.2,3836.5,2.60652]
[1734041982585,0.55,3837.2,3836.1,2.63287059]
[1734041982800,0.55,3837.2,3837.1,2.60613]
[1734041983009,0.55,3837.7,3837.1,2.60613]
[1734041983512,0.3588,3838.1,3837.4,2.60592]
[1734041983672,0.3588,3838.1,3837.2,2.60604]
[1734041984926,0.55,3838.0,3837.2,2.60604]
[1734041985413,0.55,3838.0,3836.8,0.7745]
[1734041985716,0.55,3838.0,3836.9,2.60627]
[1734041985915,0.55,3838.0,3837.2,2.60605]
[1734041986098,0.55,3838.0,3836.8,0.7745]
[1734041986415,0.55,3838.0,3837.2,2.60605]
[1734041987011,0.55,3838.0,3836.9,0.39139102]
[1734041987212,0.55,3838.0,3837.1,2.60609]
[1734041987617,0.55,3838.0,3836.9,0.39139102]
[1734041987831,0.3588,3836.9,3836.1,1.08429901]
[1734041988018,0.55,3836.5,3835.5,0.8152]
[1734041988317,0.3588,3836.9,3835.5,0.8152]
[1734041988318,0.55,3836.7,3835.5,0.8152]
[1734041988521,0.55,3836.7,3835.7,2.60708]
[1734041990043,2.60642,3836.7,3835.5,3.42236]
[1734041990252,0.55,3836.6,3835.6,2.60709]
[1734041990404,0.55,3836.6,3835.7,0.342229]
[1734041990606,0.55,3836.8,3835.7,2.60708]
[1734041991364,3.15634,3836.8,3835.7,2.60708]
[1734041991858,0.3588,3836.9,3835.7,2.60708]
[1734041991859,0.55,3836.6,3835.7,2.60708]
[1734041992456,0.3588,3836.9,3835.5,0.8152]
[1734041992457,0.55,3836.8,3835.5,0.8152]
[1734041992657,0.55,3836.8,3835.8,2.60701]
[1734041993103,0.55,3836.8,3835.5,0.8152]
[1734041993307,0.55,3836.5,3835.5,0.8152]
[1734041993611,0.55,3836.8,3835.5,3.4224]
[1734041993805,0.55,3836.5,3835.6,2.60715]
[1734041994323,0.55,3836.6,3835.7,2.60707]
[1734041994555,0.55,3836.6,3835.8,0.342227]
[1734041994725,0.55,3836.8,3835.8,0.342227]
[1734041995061,0.55,3836.5,3835.5,0.8152]
[1734041995361,0.55,3836.5,3835.6,2.60714]
[1734041995704,0.55,3836.6,3835.7,2.60708]
[1734041995935,0.55,3836.8,3835.7,2.60708]
[1734041996152,0.55,3836.8,3835.5,0.8152]
[1734041996651,0.55,3836.5,3835.6,2.96510456]
[1734041996856,2.6068,3836.2,3835.0,4.44534901]
[1734041997059,2.60691,3836.0,3834.7,0.7535]
[1734041997281,0.3588,3836.2,3834.7,0.7535]
[1734041997282,0.55,3835.9,3834.7,0.7535]
[1734041997405,0.55,3836.1,3835.2,2.60736]
[1734041998029,0.55,3836.1,3835.5,2.6072]
[1734041998736,0.55,3836.1,3835.6,2.60713]
[1734041999356,0.3588,3836.2,3835.6,0.260713]
[1734041999562,0.55,3836.5,3835.1,1.89719901]
[1734041999943,0.55,3836.5,3835.8,2.60701]
[1734042000149,0.55,3836.5,3835.9,2.60694]
[1734042000653,0.55,3836.5,3835.4,2.60727]
[1734042000852,0.55,3836.3,3835.4,2.60727]
[1734042001052,0.55,3836.3,3835.5,2.60721]
[1734042001478,0.55,3836.3,3835.4,0.642017]
[1734042001691,0.55,3836.3,3835.7,2.60707]
[1734042001875,0.55,3836.3,3835.4,0.642017]
[1734042002195,0.55,3836.3,3835.6,2.60712]
[1734042003400,0.55,3836.3,3835.6,0.3249137]
[1734042003698,0.55,3836.3,3835.6,2.9320237]
[1734042004465,0.55,3836.3,3835.6,0.3249137]
[1734042004670,0.55,3836.3,3835.6,2.60709]
[1734042004895,0.55,3836.3,3835.4,0.642017]
[1734042005261,0.55,3836.3,3835.8,2.607]
[1734042005580,0.55,3836.3,3835.6,2.60715]
[1734042006355,0.55,3836.3,3835.6,2.60709]
[1734042007259,0.55,3836.3,3835.4,0.642017]
[1734042007260,0.55,3836.3,3835.7,2.60706]
[1734042007957,0.55,3836.3,3836.0,2.60687]
[1734042008658,0.55,3836.3,3835.5,2.60722]
[1734042008857,0.55,3836.3,3835.5,2.98329842]
[1734042009094,0.55,3836.3,3835.6,2.60715]
[1734042009801,0.55,3836.3,3835.7,2.60708]
[1734042010105,0.55,3836.3,3835.9,2.6069]
[1734042010416,0.55,3836.3,3836.0,2.60687]
[1734042012212,3.69221799,3837.0,3836.2,2.60674]
[1734042012213,0.3588,3836.8,3836.2,2.60674]
[1734042012429,0.3588,3836.8,3836.1,2.60681]
[1734042012716,0.3588,3836.8,3836.7,2.6064]
[1734042013061,0.3588,3837.4,3836.7,2.6064]
[1734042013466,0.3588,3837.4,3836.7,2.60636]
[1734042013789,0.55,3837.3,3836.8,2.6063]
[1734042014509,0.55,3837.3,3836.4,2.6066]
[1734042014713,0.3588,3837.4,3836.4,2.6066]
[1734042014914,0.3588,3837.4,3835.3,0.13035025]
[1734042014915,0.3588,3837.4,3835.7,1.08429901]
[1734042015206,0.3588,3836.7,3835.5,0.821]
[1734042015406,0.3588,3836.7,3835.7,2.60707]
[1734042015789,0.3588,3836.7,3835.8,2.607]
[1734042015997,0.55,3836.6,3835.8,2.607]
[1734042016196,0.55,3836.6,3835.5,0.821]
[1734042016502,0.55,3836.6,3835.7,2.60706]
[1734042018186,0.55,3836.6,3835.8,2.607]
[1734042018866,0.55,3836.6,3836.1,2.60679]
[1734042019063,0.55,3836.6,3836.1,2.60674]
[1734042019492,0.3588,3836.7,3835.7,2.60707]
[1734042019767,0.3588,3836.7,3836.5,2.60653]
[1734042019966,0.52226965,3837.6,3835.8,0.4512369]
[1734042019967,1.08599799,3837.4,3835.8,0.4512369]
[1734042020161,1.62899699,3837.6,3835.8,0.4512369]
[1734042020162,0.3588,3837.3,3836.6,2.60641]
[1734042020711,0.3588,3837.0,3836.0,2.60686]
[1734042020866,2.34624363,3837.0,3836.1,2.6068]
[1734042021070,0.90144564,3836.9,3835.5,0.8172]
[1734042021267,0.90148059,3836.8,3835.6,2.6071]
[1734042021469,0.3588,3836.9,3835.5,0.8172]
[1734042021670,0.55,3836.8,3836.2,2.60674]
[1734042021967,0.55,3836.8,3835.5,0.8172]
[1734042021968,0.55,3836.8,3835.6,2.60715]
[1734042022289,0.55,3836.8,3836.2,2.60671]
[1734042022501,0.55,3836.8,3835.7,0.61350975]
[1734042022502,0.3588,3836.7,3835.7,2.60702]
[1734042022665,0.55,3836.6,3835.8,2.607]
[1734042023683,0.55,3836.6,3835.6,2.60712]
[1734042023684,3.15647,3836.6,3835.6,2.60712]
[1734042024278,0.55,3836.6,3835.5,0.8172]
[1734042024485,0.55,3836.4,3835.5,0.8172]
[1734042024820,0.55,3836.6,3835.5,0.8172]
[1734042025120,0.55,3836.6,3835.8,2.60696]
[1734042025688,0.55,3836.6,3835.9,2.60691]
[1734042026184,0.55,3836.6,3835.8,2.60701]
[1734042026739,0.55,3836.6,3835.9,2.60694]
[1734042027181,0.55,3836.6,3835.5,0.8172]
[1734042027182,0.55,3836.6,3835.6,2.60708]
[1734042027384,0.55,3836.6,3835.3,1.60203579]
[1734042027700,0.55,3836.6,3835.8,2.60695]
[1734042027917,0.55,3836.6,3835.4,3.00921843]
[1734042027918,0.55,3836.6,3835.9,2.60694]
[1734042028220,0.55,3836.6,3835.4,3.00921843]
[1734042028632,0.55,3836.6,3835.8,2.60698]
[1734042028980,0.55,3836.6,3835.9,2.60692]
[1734042030312,0.55,3836.6,3835.4,0.40196843]
[1734042030483,0.55,3836.6,3835.5,2.88669042]
[1734042030684,0.55,3836.6,3835.9,2.6069]
[1734042031344,0.55,3836.6,3836.0,2.60685]
[1734042031491,0.55,3836.6,3836.2,2.60672]
[1734042031821,0.55,3836.6,3835.6,1.08429901]
[1734042031822,0.55,3836.6,3836.0,2.60686]
[1734042032237,0.04244183,3836.5,3836.0,2.60686]
[1734042032541,0.55,3836.4,3836.0,2.60686]
[1734042032850,0.55,3836.4,3835.6,1.08429901]
[1734042032851,0.03758943,3836.3,3835.6,1.08429901]
[1734042033019,0.03758943,3836.3,3835.7,1.50382265]
[1734042033020,0.55,3836.2,3835.7,1.50382265]
[1734042033187,0.55,3836.2,3835.9,2.60694]
[1734042033600,0.03758943,3836.1,3836.0,2.60688]
[1734042033811,0.55,3836.1,3836.0,2.60688]